[Event "*** Titled Tuesday Blitz"]
[Site "Chess.com"]
[Date "2019.11.05"]
[Round "6"]
[White "Alex_Terzi"]
[Black "adricalderon8"]
[Result "0-1"]
[WhiteElo "2495"]
[BlackElo "2366"]
[TimeControl "180+2"]
[EndTime "14:18:39 PST"]
[Termination "adricalderon8 won by resignation"]

1. e4 {[%clk 0:03:01.9]} 1... c5 {[%clk 0:03:00.6]} 2. Nc3 {[%clk 0:03:02.7]}
2... Nc6 {[%clk 0:03:01]} 3. Bb5 {[%clk 0:03:02.5]} 3... d6 {[%clk 0:02:59.5]}
4. Bxc6+ {[%clk 0:03:02.8]} 4... bxc6 {[%clk 0:03:00.9]} 5. f4 {[%clk 0:03:03]}
5... e6 {[%clk 0:03:00.8]} 6. Nf3 {[%clk 0:03:03.2]} 6... Be7 {[%clk 0:03:02.1]}
7. O-O {[%clk 0:03:03.3]} 7... d5 {[%clk 0:03:02.1]} 8. d3 {[%clk 0:03:04.2]}
8... Nf6 {[%clk 0:03:02.1]} 9. Qe1 {[%clk 0:03:03.7]} 9... O-O {[%clk
0:03:02.2]} 10. Qg3 {[%clk 0:02:53.4]} 10... c4 {[%clk 0:03:01.3]} 11. e5 {[%clk
0:02:46.2]} 11... Ne8 {[%clk 0:03:01.2]} 12. d4 {[%clk 0:02:41.4]} 12... c5
{[%clk 0:03:01.7]} 13. Ne2 {[%clk 0:02:37.9]} 13... cxd4 {[%clk 0:03:00.4]} 14.
Nexd4 {[%clk 0:02:37.8]} 14... Rb8 {[%clk 0:03:00.6]} 15. c3 {[%clk 0:02:37.5]}
15... Bd7 {[%clk 0:03:00.9]} 16. Rf2 {[%clk 0:02:35.2]} 16... f6 {[%clk
0:02:51.7]} 17. Be3 {[%clk 0:02:32.5]} 17... Qc7 {[%clk 0:02:49.1]} 18. Raf1
{[%clk 0:02:31.5]} 18... f5 {[%clk 0:02:46.4]} 19. Ng5 {[%clk 0:02:23.6]} 19...
Bxg5 {[%clk 0:02:45.5]} 20. Qxg5 {[%clk 0:02:24]} 20... Rf7 {[%clk 0:02:38.4]}
21. h4 {[%clk 0:02:23]} 21... Qa5 {[%clk 0:02:36.4]} 22. a3 {[%clk 0:02:20.2]}
22... Qd8 {[%clk 0:02:26.4]} 23. h5 {[%clk 0:02:09.2]} 23... Nc7 {[%clk
0:02:12.8]} 24. Qg3 {[%clk 0:02:02.1]} 24... Na6 {[%clk 0:02:13.1]} 25. Nf3
{[%clk 0:01:58.9]} 25... h6 {[%clk 0:02:11.6]} 26. Nh4 {[%clk 0:01:56.2]} 26...
Qc7 {[%clk 0:02:10.1]} 27. Ng6 {[%clk 0:01:56]} 27... Nc5 {[%clk 0:02:08.4]} 28.
Bxc5 {[%clk 0:01:56.8]} 28... Qxc5 {[%clk 0:02:09.4]} 29. Kh2 {[%clk 0:01:56]}
29... Be8 {[%clk 0:02:07.5]} 30. Qf3 {[%clk 0:01:51.3]} 30... Rfb7 {[%clk
0:02:05.3]} 31. Rb1 {[%clk 0:01:33.9]} 31... Bxg6 {[%clk 0:01:53.6]} 32. hxg6
{[%clk 0:01:35.8]} 32... Rb3 {[%clk 0:01:53.7]} 33. Rd2 {[%clk 0:01:34.4]} 33...
Rxa3 {[%clk 0:01:52.2]} 34. Rbd1 {[%clk 0:01:33.9]} 34... Rab3 {[%clk
0:01:52.9]} 35. Rxd5 {[%clk 0:01:31.3]} 35... exd5 {[%clk 0:01:51.9]} 36. Rxd5
{[%clk 0:01:33.2]} 36... Qe7 {[%clk 0:01:51.6]} 37. Rd2 {[%clk 0:01:14.2]} 37...
Qh4+ {[%clk 0:01:50.3]} 38. Kg1 {[%clk 0:01:14.7]} 38... Qe1+ {[%clk 0:01:51.3]}
0-1

[Event "*** Titled Tuesday Blitz"]
[Site "Chess.com"]
[Date "2019.11.05"]
[Round "6"]
[White "Recombinant"]
[Black "Squirlolz"]
[Result "0-1"]
[WhiteElo "2343"]
[BlackElo "2543"]
[TimeControl "180+2"]
[EndTime "14:18:41 PST"]
[Termination "Squirlolz won by resignation"]

1. d4 {[%clk 0:03:01.9]} 1... e6 {[%clk 0:02:59.5]} 2. e4 {[%clk 0:03:00.9]}
2... d5 {[%clk 0:03:00.5]} 3. Nc3 {[%clk 0:03:02]} 3... Nf6 {[%clk 0:02:58.3]}
4. e5 {[%clk 0:03:02.7]} 4... Nfd7 {[%clk 0:02:59.9]} 5. f4 {[%clk 0:03:03.9]}
5... c5 {[%clk 0:03:01.5]} 6. Be3 {[%clk 0:03:04.4]} 6... Nc6 {[%clk 0:03:03.1]}
7. Nf3 {[%clk 0:03:05.3]} 7... a6 {[%clk 0:03:04.7]} 8. Qd2 {[%clk 0:03:05.8]}
8... Be7 {[%clk 0:02:59]} 9. O-O-O {[%clk 0:02:58.9]} 9... c4 {[%clk 0:02:59.5]}
10. f5 {[%clk 0:02:57.1]} 10... b5 {[%clk 0:03:00.4]} 11. fxe6 {[%clk
0:02:57.7]} 11... fxe6 {[%clk 0:03:01.3]} 12. Bg5 {[%clk 0:02:55.7]} 12... Nb6
{[%clk 0:02:41.9]} 13. Bxe7 {[%clk 0:02:55.9]} 13... Qxe7 {[%clk 0:02:43]} 14.
Qg5 {[%clk 0:02:51.5]} 14... b4 {[%clk 0:02:32]} 15. Qxe7+ {[%clk 0:02:50.1]}
15... Kxe7 {[%clk 0:02:29.8]} 16. Ne2 {[%clk 0:02:51.2]} 16... Rf8 {[%clk
0:02:28.8]} 17. c3 {[%clk 0:02:38.7]} 17... a5 {[%clk 0:02:28.4]} 18. Ng3 {[%clk
0:02:26.9]} 18... a4 {[%clk 0:02:28.1]} 19. cxb4 {[%clk 0:02:18.1]} 19... a3
{[%clk 0:02:25.7]} 20. b5 {[%clk 0:02:08.8]} 20... Nb4 {[%clk 0:02:15]} 21. bxa3
{[%clk 0:01:55.7]} 21... Rxa3 {[%clk 0:02:14.8]} 22. Rd2 {[%clk 0:01:53.5]}
22... c3 {[%clk 0:02:03.1]} 23. Rf2 {[%clk 0:01:54]} 23... Nxa2+ {[%clk
0:01:48.3]} 24. Kb1 {[%clk 0:01:53.7]} 24... Nb4 {[%clk 0:01:47.1]} 25. Be2
{[%clk 0:01:29.7]} 25... Bd7 {[%clk 0:01:44.7]} 0-1

[Event "*** Titled Tuesday Blitz"]
[Site "Chess.com"]
[Date "2019.11.05"]
[Round "6"]
[White "vinniethepooh"]
[Black "joppie2"]
[Result "0-1"]
[WhiteElo "2694"]
[BlackElo "2889"]
[TimeControl "180+2"]
[EndTime "14:18:45 PST"]
[Termination "joppie2 won by resignation"]

1. d4 {[%clk 0:03:01.9]} 1... Nf6 {[%clk 0:03:00.3]} 2. c4 {[%clk 0:03:01.8]}
2... g6 {[%clk 0:03:01.9]} 3. Nc3 {[%clk 0:03:02.7]} 3... Bg7 {[%clk 0:03:03.5]}
4. e4 {[%clk 0:03:03.7]} 4... O-O {[%clk 0:03:05.2]} 5. Be2 {[%clk 0:03:05.1]}
5... d6 {[%clk 0:03:06.1]} 6. Be3 {[%clk 0:03:06.3]} 6... Na6 {[%clk 0:03:07]}
7. Nf3 {[%clk 0:03:04.9]} 7... Ng4 {[%clk 0:03:05.5]} 8. Bg5 {[%clk 0:03:01.8]}
8... f6 {[%clk 0:03:06]} 9. Bc1 {[%clk 0:02:58.4]} 9... e5 {[%clk 0:03:06.4]}
10. h3 {[%clk 0:02:58.8]} 10... Nh6 {[%clk 0:03:07]} 11. O-O {[%clk 0:02:45.3]}
11... exd4 {[%clk 0:03:03.6]} 12. Nxd4 {[%clk 0:02:43.8]} 12... f5 {[%clk
0:03:00]} 13. Bxh6 {[%clk 0:02:26.8]} 13... Bxh6 {[%clk 0:03:01.9]} 14. exf5
{[%clk 0:02:28.1]} 14... gxf5 {[%clk 0:03:01.3]} 15. Bf3 {[%clk 0:02:23.9]}
15... Kh8 {[%clk 0:02:57.9]} 16. Re1 {[%clk 0:02:19.9]} 16... Bg7 {[%clk
0:02:51.9]} 17. Nd5 {[%clk 0:02:01]} 17... c6 {[%clk 0:02:37.4]} 18. Nf4 {[%clk
0:01:59.2]} 18... Nc5 {[%clk 0:01:50.7]} 19. b4 {[%clk 0:01:53.4]} 19... Qf6
{[%clk 0:01:50.6]} 20. Nc2 {[%clk 0:00:56.1]} 20... Ne4 {[%clk 0:01:46]} 21. Nh5
{[%clk 0:00:53.7]} 21... Qg5 {[%clk 0:01:35.5]} 22. Nxg7 {[%clk 0:00:48.9]}
22... Qxg7 {[%clk 0:01:37.4]} 23. Qd4 {[%clk 0:00:40.9]} 23... Ng5 {[%clk
0:01:31.9]} 24. Re7 {[%clk 0:00:32.2]} 24... Nxf3+ {[%clk 0:01:29.4]} 0-1

[Event "*** Titled Tuesday Blitz"]
[Site "Chess.com"]
[Date "2019.11.05"]
[Round "6"]
[White "Saitama_Hero"]
[Black "ferdipy"]
[Result "1-0"]
[WhiteElo "2352"]
[BlackElo "2211"]
[TimeControl "180+2"]
[EndTime "14:18:47 PST"]
[Termination "Saitama_Hero won by resignation"]

1. Nf3 {[%clk 0:03:01.9]} 1... Nf6 {[%clk 0:02:59.1]} 2. c4 {[%clk 0:03:03.8]}
2... e6 {[%clk 0:02:53.1]} 3. g3 {[%clk 0:03:01.4]} 3... b6 {[%clk 0:02:50.4]}
4. Bg2 {[%clk 0:03:02.6]} 4... Bb7 {[%clk 0:02:51.9]} 5. O-O {[%clk 0:03:03.9]}
5... Be7 {[%clk 0:02:53.4]} 6. b3 {[%clk 0:03:03]} 6... O-O {[%clk 0:02:53.3]}
7. Bb2 {[%clk 0:03:04.6]} 7... c5 {[%clk 0:02:54]} 8. d3 {[%clk 0:03:04.1]} 8...
d6 {[%clk 0:02:49.6]} 9. Nbd2 {[%clk 0:03:01.7]} 9... Nbd7 {[%clk 0:02:48.6]}
10. a3 {[%clk 0:03:02.9]} 10... Qc7 {[%clk 0:02:48.2]} 11. e4 {[%clk 0:02:58]}
11... Rac8 {[%clk 0:02:42.8]} 12. Re1 {[%clk 0:02:57.7]} 12... Ne5 {[%clk
0:02:34]} 13. Qc2 {[%clk 0:02:45.3]} 13... Rfd8 {[%clk 0:02:32.1]} 14. h3 {[%clk
0:02:39.5]} 14... Bf8 {[%clk 0:02:24.6]} 15. Nh2 {[%clk 0:02:38.1]} 15... Nc6
{[%clk 0:02:17.9]} 16. f4 {[%clk 0:02:36.9]} 16... Nd4 {[%clk 0:02:18.3]} 17.
Bxd4 {[%clk 0:02:32.1]} 17... cxd4 {[%clk 0:02:20.2]} 18. Ndf3 {[%clk
0:02:33.2]} 18... e5 {[%clk 0:02:20.7]} 19. f5 {[%clk 0:02:33.2]} 19... Nh5
{[%clk 0:02:15.6]} 20. Qf2 {[%clk 0:02:28.9]} 20... f6 {[%clk 0:02:12.3]} 21.
Bf1 {[%clk 0:02:25.4]} 21... g6 {[%clk 0:02:12.6]} 22. Be2 {[%clk 0:02:26.2]}
22... Bh6 {[%clk 0:02:08.2]} 23. Ng4 {[%clk 0:02:24.9]} 23... Bf8 {[%clk
0:02:02.6]} 24. fxg6 {[%clk 0:02:23.8]} 24... hxg6 {[%clk 0:02:03.1]} 25. Nh4
{[%clk 0:02:25.3]} 25... Qg7 {[%clk 0:02:01.3]} 26. Rf1 {[%clk 0:02:25.3]} 26...
Be7 {[%clk 0:02:01.9]} 27. Nh2 {[%clk 0:02:21]} 27... Qh6 {[%clk 0:01:51.9]} 28.
Kh1 {[%clk 0:02:11.1]} 28... Kh7 {[%clk 0:01:50.2]} 29. Ng4 {[%clk 0:02:07.9]}
29... Qg5 {[%clk 0:01:48.4]} 30. Nf3 {[%clk 0:02:06.2]} 30... Nxg3+ {[%clk
0:01:44.1]} 31. Qxg3 {[%clk 0:02:06.2]} 31... Qh5 {[%clk 0:01:45.1]} 32. Nfxe5
{[%clk 0:02:04.2]} 32... Qxe5 {[%clk 0:01:33.2]} 33. Nxe5 {[%clk 0:02:04.3]}
33... dxe5 {[%clk 0:01:35.1]} 34. Bg4 {[%clk 0:01:57.2]} 34... Rc7 {[%clk
0:01:33.1]} 35. Be6 {[%clk 0:01:55.3]} 35... Rh8 {[%clk 0:01:32.9]} 36. Rg1
{[%clk 0:01:54.8]} 36... g5 {[%clk 0:01:32.4]} 37. Kg2 {[%clk 0:01:50.2]} 37...
Bc6 {[%clk 0:01:32]} 38. h4 {[%clk 0:01:42.7]} 38... Kg7 {[%clk 0:01:20.8]} 39.
hxg5 {[%clk 0:01:41.7]} 39... fxg5 {[%clk 0:01:22.7]} 40. Qxe5+ {[%clk
0:01:41.6]} 40... Bf6 {[%clk 0:01:23.7]} 41. Qxc7+ {[%clk 0:01:42.5]} 1-0

[Event "*** Titled Tuesday Blitz"]
[Site "Chess.com"]
[Date "2019.11.05"]
[Round "6"]
[White "Rodalquilar"]
[Black "boasovietica"]
[Result "1-0"]
[WhiteElo "2638"]
[BlackElo "2450"]
[TimeControl "180+2"]
[EndTime "14:19:21 PST"]
[Termination "Rodalquilar won by resignation"]

1. d4 {[%clk 0:03:01.9]} 1... d5 {[%clk 0:02:59.1]} 2. Bf4 {[%clk 0:03:02.8]}
2... Nf6 {[%clk 0:02:55.5]} 3. e3 {[%clk 0:03:04.2]} 3... e6 {[%clk 0:02:55.2]}
4. Nf3 {[%clk 0:03:05.1]} 4... c5 {[%clk 0:02:55.9]} 5. c3 {[%clk 0:03:06.1]}
5... Bd6 {[%clk 0:02:55.3]} 6. Bb5+ {[%clk 0:03:07.2]} 6... Nc6 {[%clk
0:02:52.7]} 7. Bg3 {[%clk 0:03:08.6]} 7... O-O {[%clk 0:02:41.6]} 8. Nbd2 {[%clk
0:03:09.7]} 8... a6 {[%clk 0:02:25.4]} 9. Bd3 {[%clk 0:03:10.8]} 9... b5 {[%clk
0:02:06.4]} 10. Qe2 {[%clk 0:03:04.6]} 10... Bb7 {[%clk 0:02:04.5]} 11. Rd1
{[%clk 0:03:05.4]} 11... b4 {[%clk 0:01:53.4]} 12. e4 {[%clk 0:02:45.8]} 12...
bxc3 {[%clk 0:01:44.4]} 13. bxc3 {[%clk 0:02:47.7]} 13... dxe4 {[%clk
0:01:27.7]} 14. Nxe4 {[%clk 0:02:48.4]} 14... Nxe4 {[%clk 0:01:19.7]} 15. Bxe4
{[%clk 0:02:45.9]} 15... Qe7 {[%clk 0:01:02]} 16. Bxd6 {[%clk 0:02:08.8]} 16...
Qxd6 {[%clk 0:01:00.9]} 17. Bxh7+ {[%clk 0:01:30.7]} 17... Kxh7 {[%clk
0:00:58.7]} 18. Ng5+ {[%clk 0:01:30.7]} 18... Kg8 {[%clk 0:00:33.6]} 19. Qh5
{[%clk 0:01:28.3]} 19... Rfb8 {[%clk 0:00:26.5]} 20. Qxf7+ {[%clk 0:01:28.8]}
20... Kh8 {[%clk 0:00:26.4]} 21. Rd3 {[%clk 0:00:53.2]} 1-0

[Event "*** Titled Tuesday Blitz"]
[Site "Chess.com"]
[Date "2019.11.05"]
[Round "6"]
[White "Indianlad"]
[Black "LawrenceTrent"]
[Result "1-0"]
[WhiteElo "3014"]
[BlackElo "2695"]
[TimeControl "180+2"]
[EndTime "14:19:37 PST"]
[Termination "Indianlad won by resignation"]

1. d4 {[%clk 0:03:01.9]} 1... Nf6 {[%clk 0:02:56]} 2. c4 {[%clk 0:03:00.9]} 2...
g6 {[%clk 0:02:57]} 3. g3 {[%clk 0:03:02]} 3... Bg7 {[%clk 0:02:58.2]} 4. Bg2
{[%clk 0:03:03.6]} 4... O-O {[%clk 0:03:00.1]} 5. Nc3 {[%clk 0:03:05]} 5... d6
{[%clk 0:03:02]} 6. Nf3 {[%clk 0:03:06]} 6... c6 {[%clk 0:03:03.5]} 7. O-O
{[%clk 0:03:07.3]} 7... Qb6 {[%clk 0:03:05]} 8. b3 {[%clk 0:03:04.3]} 8... Bg4
{[%clk 0:03:01.2]} 9. Bb2 {[%clk 0:03:01.9]} 9... Nbd7 {[%clk 0:03:01.6]} 10. h3
{[%clk 0:03:02.8]} 10... Bxf3 {[%clk 0:03:02.6]} 11. Bxf3 {[%clk 0:03:04.7]}
11... e5 {[%clk 0:03:01.7]} 12. d5 {[%clk 0:03:06]} 12... cxd5 {[%clk
0:03:01.5]} 13. Nxd5 {[%clk 0:03:06]} 13... Nxd5 {[%clk 0:03:02.4]} 14. Bxd5
{[%clk 0:03:07.9]} 14... Rfd8 {[%clk 0:03:01.8]} 15. Qd2 {[%clk 0:03:06.3]}
15... Nf6 {[%clk 0:02:59.9]} 16. Rfd1 {[%clk 0:03:07.2]} 16... Nxd5 {[%clk
0:03:00.2]} 17. Qxd5 {[%clk 0:03:08.2]} 17... Bf8 {[%clk 0:02:52]} 18. h4 {[%clk
0:03:03.7]} 18... Qc6 {[%clk 0:02:51.7]} 19. Rd3 {[%clk 0:03:00.6]} 19... Qxd5
{[%clk 0:02:29.3]} 20. Rxd5 {[%clk 0:03:02.5]} 20... f6 {[%clk 0:02:30.7]} 21.
Rad1 {[%clk 0:02:59]} 21... Kf7 {[%clk 0:02:31.7]} 22. e4 {[%clk 0:03:00.7]}
22... Be7 {[%clk 0:02:31.2]} 23. f4 {[%clk 0:02:57.3]} 23... Ke6 {[%clk
0:02:26.2]} 24. Kg2 {[%clk 0:02:58.3]} 24... h5 {[%clk 0:02:26.6]} 25. Kf3
{[%clk 0:02:57.9]} 25... Rac8 {[%clk 0:02:19.1]} 26. Ba3 {[%clk 0:02:58.4]}
26... b6 {[%clk 0:02:14.3]} 27. Bc1 {[%clk 0:02:51]} 27... Rc5 {[%clk
0:02:08.2]} 28. R5d3 {[%clk 0:02:51.9]} 28... a5 {[%clk 0:02:02]} 29. a4 {[%clk
0:02:50.9]} 29... Rc6 {[%clk 0:02:02]} 30. Be3 {[%clk 0:02:48.9]} 30... Rdc8
{[%clk 0:01:59.5]} 31. Rd5 {[%clk 0:02:49.2]} 31... Rb8 {[%clk 0:01:56.8]} 32.
R5d2 {[%clk 0:02:32.7]} 32... Rb7 {[%clk 0:01:55.7]} 33. Rg2 {[%clk 0:02:33.8]}
33... f5 {[%clk 0:01:48.9]} 34. Rd5 {[%clk 0:02:28.5]} 34... Rb8 {[%clk
0:01:36.3]} 35. Rgd2 {[%clk 0:02:27.8]} 35... Rb7 {[%clk 0:01:37]} 36. Rd1
{[%clk 0:02:25.9]} 36... Bf6 {[%clk 0:01:31.1]} 37. Bc1 {[%clk 0:02:20.8]} 37...
Be7 {[%clk 0:01:27.6]} 38. Ba3 {[%clk 0:02:09.6]} 38... exf4 {[%clk 0:01:20.1]}
39. exf5+ {[%clk 0:02:10]} 39... gxf5 {[%clk 0:01:20.4]} 40. Re1+ {[%clk
0:02:10.7]} 40... Kf6 {[%clk 0:01:19.7]} 41. Kxf4 {[%clk 0:02:08.6]} 41... Kg6
{[%clk 0:01:13.5]} 42. Re6+ {[%clk 0:02:06]} 42... Kf7 {[%clk 0:01:13.1]} 43.
Kxf5 {[%clk 0:02:05.3]} 43... Rc5 {[%clk 0:01:06.8]} 44. Bxc5 {[%clk 0:02:03.4]}
44... bxc5 {[%clk 0:01:07.8]} 45. Rd3 {[%clk 0:01:59.8]} 45... Rb8 {[%clk
0:01:08.6]} 46. Rh6 {[%clk 0:01:54.9]} 46... Rf8 {[%clk 0:01:08.4]} 47. Rxh5
{[%clk 0:01:54.3]} 47... Kg7+ {[%clk 0:01:08.9]} 48. Kg4 {[%clk 0:01:54.7]} 1-0

[Event "*** Titled Tuesday Blitz"]
[Site "Chess.com"]
[Date "2019.11.05"]
[Round "6"]
[White "HarutyunianTigranK"]
[Black "Qvalda"]
[Result "1-0"]
[WhiteElo "2806"]
[BlackElo "2544"]
[TimeControl "180+2"]
[EndTime "14:19:42 PST"]
[Termination "HarutyunianTigranK won by checkmate"]

1. c4 {[%clk 0:03:01.9]} 1... e6 {[%clk 0:02:59.1]} 2. Nc3 {[%clk 0:03:03]} 2...
d5 {[%clk 0:03:00.6]} 3. d4 {[%clk 0:03:04.2]} 3... a6 {[%clk 0:03:02]} 4. Nf3
{[%clk 0:03:03.1]} 4... dxc4 {[%clk 0:03:01.1]} 5. a4 {[%clk 0:03:01.6]} 5... c5
{[%clk 0:02:58.1]} 6. e3 {[%clk 0:03:00.7]} 6... Nf6 {[%clk 0:02:58.1]} 7. Bxc4
{[%clk 0:03:00.9]} 7... Nc6 {[%clk 0:02:59.5]} 8. O-O {[%clk 0:02:58.9]} 8...
Qc7 {[%clk 0:03:00.7]} 9. dxc5 {[%clk 0:02:49.7]} 9... Bxc5 {[%clk 0:03:00.5]}
10. b3 {[%clk 0:02:51]} 10... O-O {[%clk 0:03:00.7]} 11. Bb2 {[%clk 0:02:52.1]}
11... b6 {[%clk 0:03:00.1]} 12. Rc1 {[%clk 0:02:52.3]} 12... Bb7 {[%clk
0:03:00]} 13. Qe2 {[%clk 0:02:52]} 13... Rac8 {[%clk 0:02:57.8]} 14. e4 {[%clk
0:02:44.3]} 14... Nd4 {[%clk 0:02:49.6]} 15. Nxd4 {[%clk 0:02:44.3]} 15... Bxd4
{[%clk 0:02:51.5]} 16. Bxa6 {[%clk 0:02:37.5]} 16... Bxa6 {[%clk 0:02:24.5]} 17.
Qxa6 {[%clk 0:02:36.4]} 17... Qe5 {[%clk 0:01:55.7]} 18. Nd5 {[%clk 0:02:13.1]}
18... Rxc1 {[%clk 0:01:45.4]} 19. Nxf6+ {[%clk 0:02:10.3]} 19... gxf6 {[%clk
0:01:18]} 20. Bxc1 {[%clk 0:02:12.2]} 20... Qxe4 {[%clk 0:01:18.7]} 21. Qc4
{[%clk 0:02:12.8]} 21... Qe5 {[%clk 0:00:48.9]} 22. Bh6 {[%clk 0:02:07.9]} 22...
Rd8 {[%clk 0:00:43.2]} 23. h3 {[%clk 0:02:00.8]} 23... f5 {[%clk 0:00:39.7]} 24.
Kh1 {[%clk 0:01:51.7]} 24... Qf6 {[%clk 0:00:39.1]} 25. Bf4 {[%clk 0:01:50.6]}
25... Be5 {[%clk 0:00:35.5]} 26. Rc1 {[%clk 0:01:38.6]} 26... Bxf4 {[%clk
0:00:27.3]} 27. Qxf4 {[%clk 0:01:40.5]} 27... e5 {[%clk 0:00:19.9]} 28. Qe3
{[%clk 0:01:40.9]} 28... e4 {[%clk 0:00:17.2]} 29. Qf4 {[%clk 0:01:39.6]} 29...
Qg6 {[%clk 0:00:13.6]} 30. b4 {[%clk 0:01:38.8]} 30... Re8 {[%clk 0:00:08.3]}
31. a5 {[%clk 0:01:39.5]} 31... bxa5 {[%clk 0:00:09.8]} 32. bxa5 {[%clk
0:01:41.4]} 32... Ra8 {[%clk 0:00:06.6]} 33. Rc3 {[%clk 0:01:41]} 33... Qf6
{[%clk 0:00:04]} 34. Rc5 {[%clk 0:01:41.8]} 34... Qa1+ {[%clk 0:00:03.1]} 35.
Kh2 {[%clk 0:01:42.5]} 35... Rxa5 {[%clk 0:00:04.4]} 36. Rc8+ {[%clk 0:01:42.2]}
36... Kg7 {[%clk 0:00:03.3]} 37. Qg5# {[%clk 0:01:44.1]} 1-0

[Event "*** Titled Tuesday Blitz"]
[Site "Chess.com"]
[Date "2019.11.05"]
[Round "6"]
[White "Heineccius"]
[Black "2165149677570"]
[Result "1-0"]
[WhiteElo "2598"]
[BlackElo "2305"]
[TimeControl "180+2"]
[EndTime "14:19:53 PST"]
[Termination "Heineccius won by resignation"]

1. d4 {[%clk 0:03:01.9]} 1... Nf6 {[%clk 0:03:00.9]} 2. c4 {[%clk 0:03:02.6]}
2... e6 {[%clk 0:03:02.1]} 3. Nc3 {[%clk 0:03:02.8]} 3... Bb4 {[%clk 0:03:03.2]}
4. g3 {[%clk 0:03:00.5]} 4... c5 {[%clk 0:02:52]} 5. Nf3 {[%clk 0:03:00.4]} 5...
cxd4 {[%clk 0:02:47.7]} 6. Nxd4 {[%clk 0:03:00.7]} 6... O-O {[%clk 0:02:48]} 7.
Bg2 {[%clk 0:03:00.6]} 7... a6 {[%clk 0:02:49.4]} 8. O-O {[%clk 0:03:00.7]} 8...
Qc7 {[%clk 0:02:50.8]} 9. Qd3 {[%clk 0:02:52.2]} 9... Nc6 {[%clk 0:02:44.3]} 10.
b3 {[%clk 0:02:41.6]} 10... d5 {[%clk 0:02:26.8]} 11. Nxc6 {[%clk 0:02:27.3]}
11... bxc6 {[%clk 0:02:25.2]} 12. Bg5 {[%clk 0:02:27.8]} 12... Be7 {[%clk
0:02:16.8]} 13. Rac1 {[%clk 0:02:18.2]} 13... Qa5 {[%clk 0:02:01.5]} 14. Bd2
{[%clk 0:02:15.8]} 14... Qa3 {[%clk 0:01:56.4]} 15. Qc2 {[%clk 0:01:59.9]} 15...
a5 {[%clk 0:01:21.9]} 16. Na4 {[%clk 0:02:00.5]} 16... Ba6 {[%clk 0:01:19]} 17.
Bf4 {[%clk 0:01:42.8]} 17... Bd6 {[%clk 0:00:47.1]} 18. Bxd6 {[%clk 0:01:31.9]}
18... Qxd6 {[%clk 0:00:49]} 19. Rfd1 {[%clk 0:01:30.6]} 19... Qb4 {[%clk
0:00:45.5]} 20. e4 {[%clk 0:01:02.8]} 20... dxe4 {[%clk 0:00:20.8]} 21. Bxe4
{[%clk 0:01:02.3]} 21... Nxe4 {[%clk 0:00:22.7]} 22. Qxe4 {[%clk 0:01:02.4]}
22... c5 {[%clk 0:00:19.5]} 23. Rd7 {[%clk 0:00:56.8]} 23... Rad8 {[%clk
0:00:14.8]} 24. Rcd1 {[%clk 0:00:55.7]} 24... Rxd7 {[%clk 0:00:13.5]} 25. Rxd7
{[%clk 0:00:57]} 25... Bb5 {[%clk 0:00:11]} 26. Rb7 {[%clk 0:00:54.2]} 26...
Bxa4 {[%clk 0:00:04.8]} 27. Rxb4 {[%clk 0:00:53.9]} 27... Bc6 {[%clk 0:00:06.7]}
28. Qxc6 {[%clk 0:00:53.4]} 1-0

[Event "*** Titled Tuesday Blitz"]
[Site "Chess.com"]
[Date "2019.11.05"]
[Round "6"]
[White "semchik73"]
[Black "vanyakuba"]
[Result "1-0"]
[WhiteElo "2413"]
[BlackElo "2390"]
[TimeControl "180+2"]
[EndTime "14:19:56 PST"]
[Termination "semchik73 won by resignation"]

1. Nf3 {[%clk 0:03:00.3]} 1... f5 {[%clk 0:02:59.7]} 2. e4 {[%clk 0:03:00.6]}
2... fxe4 {[%clk 0:03:00.1]} 3. Ng5 {[%clk 0:03:02]} 3... Nf6 {[%clk 0:03:01.2]}
4. d3 {[%clk 0:03:02.7]} 4... e5 {[%clk 0:03:02.3]} 5. dxe4 {[%clk 0:03:02.7]}
5... h6 {[%clk 0:02:59]} 6. Nf3 {[%clk 0:03:03.4]} 6... Nc6 {[%clk 0:02:56.7]}
7. Bc4 {[%clk 0:03:03]} 7... Bc5 {[%clk 0:02:43.1]} 8. Nc3 {[%clk 0:02:59.4]}
8... d6 {[%clk 0:02:43.5]} 9. h3 {[%clk 0:02:47]} 9... Ne7 {[%clk 0:01:49.6]}
10. Qd3 {[%clk 0:02:33.1]} 10... Ng6 {[%clk 0:01:44]} 11. Nd5 {[%clk 0:02:25.2]}
11... Nxd5 {[%clk 0:01:36.8]} 12. Qxd5 {[%clk 0:02:25.9]} 12... Qe7 {[%clk
0:01:37.8]} 13. Bb5+ {[%clk 0:02:13]} 13... Kf8 {[%clk 0:01:29.4]} 14. Bc4
{[%clk 0:02:11.4]} 14... c6 {[%clk 0:01:29.8]} 15. Qd3 {[%clk 0:02:10.7]} 15...
Be6 {[%clk 0:01:28.1]} 16. Bxe6 {[%clk 0:02:09]} 16... Qxe6 {[%clk 0:01:29.1]}
17. Bd2 {[%clk 0:02:01.8]} 17... Kf7 {[%clk 0:01:18.6]} 18. O-O {[%clk
0:01:51.3]} 18... Rhf8 {[%clk 0:01:19.2]} 19. a4 {[%clk 0:01:42.2]} 19... a6
{[%clk 0:01:15]} 20. b4 {[%clk 0:01:40.6]} 20... Bb6 {[%clk 0:01:15.8]} 21. Rad1
{[%clk 0:01:30.8]} 21... Kg8 {[%clk 0:01:16.3]} 22. Be3 {[%clk 0:01:28]} 22...
Bc7 {[%clk 0:01:16.2]} 23. c4 {[%clk 0:01:21.7]} 23... Nf4 {[%clk 0:01:14.5]}
24. Bxf4 {[%clk 0:01:18.7]} 24... Rxf4 {[%clk 0:01:16.4]} 25. c5 {[%clk
0:01:14.3]} 25... dxc5 {[%clk 0:00:49.5]} 26. bxc5 {[%clk 0:01:14.6]} 26... Rd8
{[%clk 0:00:50.3]} 27. Qc3 {[%clk 0:01:13.8]} 27... Rxd1 {[%clk 0:00:45.5]} 28.
Rxd1 {[%clk 0:01:14.4]} 28... Rxe4 {[%clk 0:00:46.7]} 29. Qb2 {[%clk 0:01:03.8]}
29... Qc8 {[%clk 0:00:19.7]} 30. Rb1 {[%clk 0:01:02.1]} 30... Rxa4 {[%clk
0:00:17.8]} 31. Qb3+ {[%clk 0:01:02.4]} 1-0